bitfinex-derivatives/quotes_ETHF0:USTF0_20251210
["timestamp","ask_amount","ask_price","bid_price","bid_amount"]
[1765361034211,1.84771464,3375.8,3372.5,6.01604331]
[1765361034417,1.84771464,3375.1,3372.5,6.16430331]
[1765361034715,1.84771464,3374.8,3370.9,1.84771464]
[1765361034912,0.00437921,3373.2,3372.5,0.00444721]
[1765361035711,0.00437921,3373.2,3370.9,0.00380642]
[1765361035712,2.99935406,3373.2,3370.9,0.00380642]
[1765361035908,0.00437921,3373.2,3371.5,0.1483]
[1765361036310,2.99497485,3373.0,3370.9,0.00380642]
[1765361036512,1.84771464,3372.8,3370.9,0.00380642]
[1765361036714,1.84771464,3372.8,3371.5,0.00444721]
[1765361037015,1.84771464,3372.0,3370.9,0.00380642]
[1765361037210,1.84771464,3372.0,3369.8,0.14837]
[1765361037211,1.85065802,3372.0,3369.8,0.14837]
[1765361037707,3.2078,3371.6,3370.8,3.2078]
[1765361037913,1.84771464,3371.3,3370.3,3.2078]
[1765361038207,3.2078,3371.4,3369.9,3.2078]
[1765361038208,2.99497485,3370.5,3369.9,3.2078]
[1765361038413,2.99497485,3370.0,3367.8,0.14846]
[1765361038615,3.2078,3369.5,3368.7,3.2078]
[1765361039015,0.00444721,3369.4,3368.8,0.00444721]
[1765361039215,0.0078346,3369.4,3368.8,0.00742176]
[1765361039418,0.0078346,3369.4,3368.8,6.00742176]
[1765361040021,0.14824,3372.9,3368.8,7.8551364]
[1765361040214,1.84771464,3373.0,3370.1,0.14836]
[1765361040414,3.79680521,3372.8,3368.9,1.396]
[1765361040615,3.79680521,3374.2,3368.9,1.396]
[1765361040616,1.84771464,3373.3,3369.5,1.84771464]
[1765361040911,0.00347399,3373.3,3371.9,0.14828]
[1765361041112,0.00444721,3372.9,3371.9,0.15121018]
[1765361041515,0.00444721,3372.9,3371.9,0.00293018]
[1765361042014,0.00444721,3372.9,3371.3,0.14831]
[1765361042419,2.99497485,3372.8,3371.3,0.14831]
[1765361042919,0.00444721,3372.9,3371.3,0.00297087]
[1765361043320,0.00444721,3372.9,3372.2,0.14827]
[1765361043516,0.00444721,3372.9,3371.4,0.1483]
[1765361043712,0.00444721,3372.9,3372.8,3.2078]
[1765361044013,3.21224721,3372.9,3371.6,3.2078]
[1765361044318,3.21224721,3372.9,3371.3,0.00297087]
[1765361044319,3.2078,3371.7,3371.3,0.00297087]
[1765361044520,1.84771464,3371.4,3371.3,0.00297087]
[1765361044714,1.84771464,3371.4,3369.6,3.2078]
[1765361044913,3.2078,3370.2,3369.2,3.2078]
[1765361045529,3.2078,3369.3,3368.7,3.2078]
[1765361045728,3.21133896,3369.3,3368.7,3.2116239]
[1765361045919,3.21578617,3369.3,3368.7,0.00827111]
[1765361046117,0.00798617,3369.3,3368.7,0.00827111]
[1765361046522,1.84771464,3369.1,3368.7,0.00827111]
[1765361047118,6.0,3369.0,3366.1,0.14854]
[1765361047323,1.99612464,3369.1,3366.3,0.14853]
[1765361047629,1.84771464,3368.4,3366.3,0.14853]
[1765361047829,1.84771464,3368.4,3365.0,0.275]
[1765361047830,0.00798617,3369.3,3366.2,0.24058455]
[1765361048022,0.00445448,3368.1,3367.4,0.00445448]
[1765361048217,0.00445448,3368.1,3367.7,0.14847]
[1765361048525,0.00353896,3369.3,3368.5,0.14843]
[1765361048724,3.21133896,3369.3,3368.5,3.35623]
[1765361048925,0.00353896,3369.3,3368.3,3.2078]
[1765361049122,0.00353896,3369.3,3368.8,3.2078]
[1765361049328,0.00353896,3369.3,3369.2,3.2078]
[1765361049627,3.2078,3370.2,3369.2,3.2078]
[1765361049818,3.2078,3370.7,3369.6,3.35618]
[1765361050626,0.00445448,3370.5,3369.8,0.00445448]
[1765361050831,3.2078,3370.3,3369.8,0.00445448]
[1765361051220,0.00445448,3370.5,3369.8,0.00445448]
[1765361051831,3.2078,3370.3,3369.8,0.00445448]
[1765361052027,0.00445448,3370.5,3369.8,0.00445448]
[1765361052237,0.00445448,3370.5,3370.1,3.2078]
[1765361052530,3.2078,3370.3,3369.8,0.00445448]
[1765361053133,0.00445448,3370.5,3369.8,0.00445448]
[1765361053134,3.2078,3369.9,3369.8,0.00445448]
[1765361053529,3.2078,3370.4,3369.8,0.00445448]
[1765361054024,3.2078,3370.4,3369.8,3.21225448]
[1765361054227,0.00445448,3370.5,3370.2,3.2078]
[1765361055838,0.00445448,3370.5,3369.8,0.00445448]
[1765361055839,3.21225448,3370.5,3369.8,0.00445448]
[1765361056236,0.00445448,3370.5,3370.1,0.14836]
[1765361056438,0.00445448,3370.5,3370.1,3.2078]
[1765361056938,0.00445448,3370.5,3370.3,3.2078]
[1765361057333,0.00445448,3370.5,3370.4,0.14835]
[1765361057737,0.00445448,3370.5,3370.3,3.2078]
[1765361057942,0.00445448,3370.5,3369.9,3.35617]
[1765361058145,0.00445448,3370.5,3369.9,3.2078]
[1765361058437,0.00445448,3370.5,3370.1,0.14836]
[1765361058941,0.00445448,3370.5,3369.9,3.2078]
[1765361059539,0.00445448,3370.5,3370.1,0.14836]
[1765361059842,0.00445448,3370.5,3369.9,3.2078]
[1765361060343,0.00445448,3370.5,3369.9,3.35617]
[1765361061541,0.00445448,3370.5,3369.9,3.2078]
[1765361061934,3.2078,3370.1,3369.8,0.00445448]
[1765361062538,9.2078,3370.1,3368.8,0.00328918]
[1765361062741,1.84771464,3370.2,3368.8,0.00328918]
[1765361062742,3.2078,3369.3,3368.8,0.00328918]
[1765361063834,3.2078,3368.9,3368.8,0.00328918]
[1765361064034,3.2078,3368.9,3367.7,0.77119218]
[1765361064244,3.2078,3368.3,3367.8,0.75727421]
[1765361064543,3.2078,3368.3,3367.5,3.2078]
[1765361065233,0.00445448,3368.2,3367.6,0.00445448]
[1765361065436,0.00445448,3368.2,3367.9,3.2078]
[1765361065640,3.2078,3369.0,3368.0,1.78705315]
[1765361065840,3.2078,3369.0,3368.4,3.97448259]
[1765361066147,40.8,3372.7,3368.5,0.75879691]
[1765361066340,3.2078,3372.0,3371.0,0.14832]
[1765361066538,0.00445448,3371.8,3371.5,0.76669079]
[1765361066739,0.00445448,3371.8,3371.6,0.75676977]
[1765361067037,0.00445448,3371.8,3371.7,0.75676977]
[1765361067244,1.84771464,3373.8,3371.8,0.14829]
[1765361067444,3.2078,3373.7,3371.9,1.52134633]
[1765361067646,40.8,3373.6,3372.0,0.75676977]
[1765361067841,40.8,3373.6,3372.1,0.75676977]
[1765361068035,3.2078,3373.5,3372.2,0.75676977]
[1765361068247,1.84771464,3373.1,3371.8,0.76457656]
[1765361068434,1.84771464,3373.1,3371.6,1.02825624]
[1765361068435,1.84771464,3373.1,3371.9,0.75595664]
[1765361068639,1.84771464,3373.1,3371.2,1.54683885]
[1765361068640,3.2078,3373.0,3371.3,0.76457656]
[1765361068851,3.2078,3373.0,3371.4,0.75624841]
[1765361069042,3.2078,3373.0,3371.5,0.75624841]
[1765361069241,3.2078,3373.0,3371.6,0.75624841]
[1765361069548,3.2078,3373.0,3371.3,0.76457656]
[1765361069749,3.2078,3373.0,3371.4,0.75602729]
[1765361069944,3.2078,3373.0,3371.5,0.75602729]
[1765361070144,3.2078,3373.0,3371.6,0.75602729]
[1765361070339,3.2078,3373.0,3371.2,0.76903104]
[1765361070546,3.2078,3373.0,3371.3,0.75605835]
[1765361070840,3.2078,3373.0,3371.2,0.76903104]
[1765361070841,3.35603,3373.0,3371.4,0.75605835]
[1765361071046,3.35603,3373.0,3371.2,0.00445448]
[1765361071047,1.84771464,3372.4,3371.2,0.00445448]
[1765361071349,3.2078,3372.7,3371.9,3.2078]
[1765361071649,1.84771464,3372.2,3371.8,3.2078]
[1765361072145,1.84771464,3372.2,3371.3,3.2078]
[1765361072146,3.2078,3372.1,3371.3,3.2078]
[1765361073245,40.8,3372.0,3371.3,3.2078]
[1765361076246,40.94828,3372.0,3371.2,0.00445448]
[1765361076441,3.2078,3371.7,3371.2,0.00445448]
[1765361076842,0.00444767,3373.2,3371.6,3.2078]
[1765361076843,0.14825,3372.8,3371.6,3.2078]
[1765361077042,3.35605,3372.7,3371.7,3.96560224]
[1765361077247,40.8,3372.6,3371.8,0.75780224]
[1765361077446,40.8,3372.6,3371.9,0.75780224]
[1765361077647,40.8,3372.6,3372.0,0.75780224]
[1765361077847,40.8,3372.6,3371.7,3.2078]
[1765361078050,40.8,3372.6,3371.8,0.75827865]
[1765361078248,40.8,3372.6,3371.7,3.2078]
[1765361079762,3.9611,3372.0,3371.7,3.2078]
[1765361079957,3.9611,3372.0,3371.3,3.2078]
[1765361080164,3.9611,3372.0,3371.4,0.75892089]
[1765361080361,3.9611,3372.0,3371.3,3.2078]
[1765361080558,3.9611,3372.0,3371.4,0.75888978]
[1765361080754,3.2078,3371.7,3371.2,0.00445448]
[1765361080966,12.33,3371.6,3371.2,0.00445448]
[1765361081363,12.331,3371.9,3371.3,3.2078]
[1765361082065,3.9611,3372.0,3371.3,3.2078]
[1765361082858,12.324,3372.4,3371.7,3.2078]
[1765361083060,3.9611,3372.8,3372.1,3.2078]
[1765361083459,3.9611,3373.6,3372.5,3.2078]
[1765361083460,44.0078,3373.4,3372.5,3.2078]
[1765361083857,3.9611,3372.8,3372.5,3.2078]
[1765361085362,3.9611,3372.8,3372.1,3.2078]
[1765361085572,0.00444767,3373.2,3372.6,3.2078]
[1765361086067,0.00444767,3373.2,3373.1,3.2078]
[1765361089564,0.00444767,3373.2,3372.6,3.2078]
[1765361091570,0.00444767,3373.2,3373.1,3.2078]
[1765361094875,0.00444767,3373.2,3372.7,3.2078]
[1765361095081,3.9611,3372.8,3372.3,3.2078]
[1765361095270,0.00444767,3373.2,3372.4,0.75682451]
[1765361095471,40.8,3373.1,3372.5,0.75682451]
[1765361095666,40.8,3373.1,3372.6,0.75682451]
[1765361095879,40.8,3373.1,3372.3,3.2078]
[1765361096173,3.9611,3372.8,3372.3,3.2078]
[1765361096976,3.7862,3372.0,3371.6,0.76457656]
[1765361097170,3.7862,3372.0,3371.7,0.75826747]
[1765361097370,3.7862,3372.0,3371.4,3.2078]
[1765361097573,6.994,3372.0,3371.4,3.2078]
[1765361098170,0.14829,3371.8,3371.2,0.00445448]
[1765361098372,12.273,3371.9,3371.2,0.00445448]
[1765361099380,6.994,3372.0,3371.2,0.00445448]
[1765361099584,3.7862,3372.0,3371.5,3.2078]
[1765361099875,3.7862,3372.0,3371.6,0.75831528]
[1765361100084,3.7862,3372.0,3371.5,3.2078]
[1765361100283,3.7862,3372.0,3371.6,0.75810394]
[1765361100580,3.9611,3372.8,3371.9,3.2078]
[1765361100885,3.9611,3372.8,3372.0,0.7577371]
[1765361101182,3.9611,3372.8,3372.1,3.9655371]
[1765361101382,3.9611,3372.8,3372.1,3.2078]
[1765361101581,3.9611,3372.8,3371.7,3.97237656]
[1765361101881,3.2078,3372.5,3371.8,0.75793448]
[1765361102084,2.4125,3372.0,3371.7,3.2078]
[1765361102577,2.4125,3372.0,3371.2,3.21225448]
[1765361102782,5.6203,3372.0,3371.2,3.21225448]
[1765361103880,0.14828,3371.9,3371.2,3.21225448]
[1765361104283,12.263,3371.8,3371.2,3.21225448]
[1765361104587,12.41129,3371.8,3371.2,3.21225448]
[1765361104977,0.14829,3371.7,3371.2,3.21225448]
[1765361105781,2.21143526,3371.4,3371.2,0.00445448]
[1765361105978,3.0392,3371.2,3370.7,3.2078]
[1765361106575,40.8,3371.1,3370.7,3.2078]
[1765361106986,3.04364767,3371.2,3370.7,3.2078]
[1765361107187,0.0022071,3371.1,3370.7,3.21144139]
[1765361108686,3.2078,3370.9,3370.7,0.00364139]
[1765361110690,2.3135,3369.6,3368.7,3.2078]
[1765361110993,3.2078,3369.5,3368.8,0.75801826]
[1765361111183,3.2078,3369.5,3368.7,3.2078]
[1765361111383,3.2078,3369.5,3368.8,0.75745164]
[1765361111583,3.21224767,3369.5,3368.8,0.00444767]
[1765361112782,0.00444767,3369.5,3368.8,2.38414767]
[1765361112989,3.21224767,3369.5,3368.8,0.00444767]
[1765361113394,3.2078,3369.1,3368.8,0.00444767]
[1765361113992,15.4408,3369.1,3368.8,0.00444767]
[1765361114192,3.2078,3369.1,3368.8,0.00444767]
[1765361114387,12.233,3369.0,3368.8,0.00444767]
[1765361114786,12.233,3369.0,3367.4,3.2078]
[1765361114787,0.14843,3368.6,3367.4,3.2078]
[1765361114996,5.5213,3368.0,3367.4,3.2078]
[1765361115389,3.2078,3367.6,3366.8,3.96314371]
[1765361115586,3.2078,3367.6,3366.8,3.2078]
[1765361115792,0.00445454,3367.5,3366.9,0.00306359]
[1765361116301,2.3135,3367.2,3366.9,0.00306359]
[1765361116795,3.2078,3367.0,3366.9,0.00306359]
[1765361117095,3.2078,3367.0,3366.1,3.2078]
[1765361117394,2.3135,3366.4,3366.1,3.2078]
[1765361117698,3.2078,3366.2,3365.1,3.2078]
[1765361118090,11.128,3366.1,3365.1,3.21057496]
[1765361118288,3.2078,3365.7,3365.1,3.21057496]
[1765361118493,2.3135,3365.6,3365.1,3.21057496]
[1765361118693,3.2078,3365.2,3365.1,0.00277496]
[1765361118894,0.00337814,3365.2,3365.1,0.00277496]
[1765361119891,3.21117814,3365.2,3365.1,0.00277496]
[1765361120402,15.43717814,3365.2,3365.1,0.00277496]
[1765361120694,0.00337814,3365.2,3365.1,0.00277496]
[1765361123389,3.21117814,3365.2,3365.1,0.00277496]
[1765361123805,0.00337814,3365.2,3365.1,0.00277496]
[1765361124191,3.21117814,3365.2,3365.1,0.00277496]
[1765361125205,3.21117814,3365.2,3364.1,3.2078]
[1765361126207,3.21117814,3365.2,3364.1,3.21136287]
[1765361126603,3.2078,3364.8,3364.1,3.21136287]
[1765361127002,0.00337814,3365.2,3364.1,3.21136287]
[1765361127810,0.00337814,3365.2,3364.5,3.2078]
[1765361127998,3.2078,3365.0,3364.5,3.2078]
[1765361128198,3.2078,3365.0,3364.1,3.21136287]
[1765361129900,1.6739,3364.9,3364.1,3.21136287]
[1765361131704,3.2078,3364.6,3364.1,0.00356287]
[1765361131907,6.3016,3364.2,3364.1,0.00356287]
[1765361132599,2.1827,3364.2,3364.1,0.00356287]
[1765361133105,3.2078,3364.6,3364.1,4.06076287]
[1765361133807,6.4324,3364.2,3364.1,0.00356287]
[1765361134598,3.2078,3364.6,3364.1,4.06076287]
[1765361135102,3.2078,3364.6,3364.1,0.00356287]
[1765361136913,1.6739,3364.9,3363.4,3.2078]
[1765361136914,6.4324,3363.5,3363.4,3.2078]
[1765361137108,6.4324,3363.5,3362.3,0.76529861]
[1765361137109,0.00445454,3363.8,3363.2,3.2078]
[1765361137610,4.1189,3363.3,3363.2,3.2078]
[1765361137810,0.00445454,3363.8,3363.2,3.20995254]
[1765361138211,4.1189,3363.3,3363.2,3.20995254]
[1765361138408,5.5213,3363.5,3363.2,0.00215254]
[1765361139313,0.00445454,3363.8,3363.4,4.0572]
[1765361139611,3.2078,3363.5,3363.2,0.00215254]
[1765361139812,4.7464,3363.5,3363.2,0.00215254]
[1765361140011,5.2891,3363.3,3363.2,0.00215254]
[1765361140310,2.6356,3363.3,3363.2,0.00215254]
[1765361140510,4.7464,3363.5,3363.2,0.00215254]
[1765361140705,0.00445454,3363.8,3363.7,5.2261]
[1765361140905,0.00445454,3363.8,3363.7,2.7091]
[1765361141210,2.64005454,3363.8,3363.4,3.2078]
[1765361141410,4.1742,3363.5,3363.4,3.2078]
[1765361141612,6.8277,3363.5,3363.4,3.2078]
[1765361141811,5.2891,3363.3,3363.2,0.00215254]
[1765361142513,2.6356,3363.3,3363.2,0.00215254]
[1765361143315,5.2891,3363.3,3363.2,0.00215254]
[1765361143909,2.6356,3362.5,3362.4,3.97309861]
[1765361144308,4.7464,3362.8,3362.4,4.23605624]
[1765361144509,4.7464,3362.8,3362.6,0.77468691]
[1765361144815,4.74896855,3362.8,3362.6,0.77468691]
[1765361145116,2.6356,3362.7,3362.6,0.77468691]
[1765361145412,0.00256855,3362.8,3362.7,5.2261]
[1765361146115,0.00256855,3362.8,3362.7,6.2598194]
[1765361146319,0.00256855,3362.8,3362.7,5.2261]
[1765361147314,0.00256855,3362.8,3362.7,6.76848437]
[1765361147819,0.00256855,3362.8,3362.7,12.76848437]
[1765361148610,0.00256855,3362.8,3362.7,6.76848437]
[1765361150109,0.00256855,3362.8,3362.7,4.25148437]
[1765361150522,0.00256855,3362.8,3362.7,1.54238437]
[1765361150719,2.63816855,3362.8,3362.7,1.54238437]
[1765361151322,0.00256855,3362.8,3362.7,4.25148437]
[1765361151522,0.00256855,3362.8,3362.7,6.76848437]
[1765361152223,0.00256855,3362.8,3362.7,4.25148437]
[1765361153018,0.00256855,3362.8,3362.7,6.76848437]
[1765361153925,5.29166855,3362.8,3362.7,1.54238437]
[1765361154123,0.00256855,3362.8,3362.7,1.54238437]
[1765361154327,0.00256855,3362.8,3362.7,4.25148437]
[1765361154520,5.29166855,3362.8,3362.7,1.54238437]
[1765361154728,5.2891,3362.5,3362.4,4.24422121]
[1765361155127,0.8407,3362.4,3361.3,2.07915206]
[1765361155327,3.2078,3362.0,3361.9,5.2283744]
[1765361155730,3.2078,3362.0,3361.9,2.7113744]
[1765361156331,8.4969,3362.0,3361.9,0.0022744]
[1765361159830,3.2078,3362.0,3361.9,5.2283744]
[1765361160731,0.00256855,3362.8,3361.9,11.3770944]
[1765361160932,3.2078,3362.7,3362.6,2.7091]
[1765361161129,5.8434,3362.7,3361.9,0.0022744]
[1765361161731,3.2078,3362.7,3361.9,0.0022744]
[1765361163540,3.2078,3362.7,3362.6,2.7091]
[1765361164436,3.2078,3362.7,3362.6,5.2261]
[1765361165433,0.00256855,3362.8,3362.7,5.2261]
[1765361166935,5.2891,3362.3,3361.9,2.08142646]
[1765361167140,5.2891,3362.3,3361.9,0.0022744]
[1765361167846,3.21036855,3362.8,3362.2,2.7091]
[1765361169835,3.105,3362.0,3361.9,0.0022744]
[1765361170245,3.21036855,3362.8,3361.9,3.2047744]
[1765361171546,6.358,3362.0,3361.9,0.0022744]
[1765361172043,6.358,3361.5,3361.3,3.2078]
[1765361172346,3.105,3361.4,3361.3,3.2078]
[1765361172544,0.00446136,3361.7,3361.6,3.2025]
[1765361172741,0.00446136,3361.7,3361.6,6.3272]
[1765361173245,0.00446136,3361.7,3361.6,3.2025]
[1765361173447,0.00446136,3361.7,3361.6,6.3272]
[1765361173647,3.35648,3362.9,3361.6,12.3272]
[1765361173937,3.2078,3362.4,3361.7,3.2078]
[1765361174138,3.2078,3362.4,3361.8,1.9208]
[1765361174333,6.358,3361.9,3361.7,3.2078]
[1765361174540,3.2078,3362.0,3361.7,6.3272]
[1765361174742,0.00446136,3362.1,3362.0,6.3272]
[1765361175544,3.10946136,3362.1,3361.8,1.9208]
[1765361175744,3.10946136,3362.1,3361.7,4.76524242]
[1765361176243,3.105,3361.8,3361.7,3.2078]
[1765361176441,0.00446136,3362.1,3362.0,3.2025]
[1765361177337,0.00446136,3362.1,3362.0,6.3272]
[1765361179747,3.2078,3362.6,3362.0,6.3272]
[1765361180048,3.2078,3362.6,3362.5,6.3272]
[1765361181145,0.00256855,3362.8,3362.7,6.3272]
[1765361183450,3.2078,3363.4,3363.3,6.3272]
[1765361183854,3.2078,3363.9,3363.3,6.3272]
[1765361184058,3.35642,3364.3,3363.5,3.2078]
[1765361184352,0.00226496,3364.2,3363.6,1.9208]
[1765361184553,0.00672632,3364.2,3364.1,6.3272]
[1765361185745,0.12362019,3364.5,3364.4,6.3272]
[1765361185948,3.35636,3365.6,3364.4,10.57016124]
[1765361186253,3.2078,3365.2,3364.4,9.535]
[1765361186948,6.358,3364.5,3363.8,3.2078]
[1765361187549,3.105,3364.5,3363.8,3.2078]
[1765361187754,3.2078,3364.6,3364.4,3.2025]
[1765361187956,3.2078,3364.6,3364.5,3.2025]
[1765361188160,3.2078,3364.6,3364.5,6.3272]
[1765361188859,6.3128,3364.6,3363.9,1.03516124]
[1765361189158,3.21226136,3365.1,3364.5,6.3272]
[1765361190158,3.105,3364.6,3364.2,4.8879]
[1765361190656,3.105,3364.6,3364.5,3.2025]
[1765361190956,6.358,3364.6,3364.2,4.8879]
[1765361191157,3.105,3364.6,3364.2,4.8879]
[1765361191360,3.105,3364.6,3364.5,3.2025]
[1765361192651,4.57491057,3365.1,3364.5,6.3272]
[1765361192855,3.105,3364.6,3364.5,3.2025]
[1765361193264,4.57491057,3365.1,3364.5,6.3272]
[1765361193865,3.105,3364.6,3364.5,3.2025]
[1765361194062,6.358,3364.3,3363.8,3.2078]
[1765361194373,3.105,3364.3,3364.2,3.2025]
[1765361194958,1.36264921,3364.6,3364.2,6.3272]
[1765361195658,6.358,3364.3,3363.8,3.2078]
[1765361196969,3.105,3363.9,3363.8,6.4103]
[1765361197468,6.358,3363.6,3363.5,0.0068997]
[1765361197671,3.105,3363.6,3363.5,6.3340997]
[1765361198172,3.105,3363.6,3363.5,3.2093997]
[1765361198870,3.105,3363.6,3363.5,6.3340997]
[1765361199870,5.9976,3363.6,3363.5,0.0068997]
[1765361201764,6.14625,3363.6,3363.5,0.0068997]
[1765361202173,5.724,3363.0,3362.9,3.2078]
[1765361203070,5.724,3363.0,3362.9,6.10460628]
[1765361203372,2.8314,3363.0,3362.9,6.10460628]
[1765361203566,2.8314,3363.0,3362.9,8.87900628]
[1765361205364,7.3353,3363.0,3362.9,3.21010628]
[1765361206273,7.3353,3363.0,3362.6,0.00446136]
[1765361206474,5.724,3362.1,3362.0,0.77593846]
[1765361206775,5.724,3362.1,3361.7,0.77593846]
[1765361206974,5.724,3361.8,3361.5,2.69673846]
[1765361207367,2.8314,3361.6,3361.5,2.8945]
[1765361207576,5.724,3361.6,3361.5,2.8945]
[1765361207875,0.0027443,3361.8,3361.3,0.78039982]
[1765361207876,5.724,3361.4,3361.3,0.00446136]
[1765361209576,5.724,3360.1,3360.0,0.77593846]
[1765361209772,5.724,3359.8,3359.7,0.77593846]
[1765361210077,2.8314,3359.4,3359.0,2.48363846]
[1765361210277,0.00345622,3359.4,3359.3,2.8945]
[1765361210484,0.00345622,3359.4,3359.3,5.6689]
[1765361210874,2.83485622,3359.4,3359.0,1.71216136]
[1765361211270,0.00345622,3359.4,3359.3,5.6689]
[1765361212281,0.14878,3360.8,3359.6,5.6689]
[1765361212481,2.8314,3359.7,3359.0,0.00446136]
[1765361213182,0.0079291,3359.7,3359.6,5.6689]
[1765361213384,1.6113,3361.5,3360.9,2.8945]
[1765361214085,2.8314,3361.0,3360.9,2.8945]
[1765361214289,2.8314,3361.0,3360.0,1.7077]
[1765361214489,0.00446136,3360.8,3360.2,0.00446136]
[1765361216388,2.83586136,3360.8,3360.2,0.00446136]
[1765361217288,2.8314,3360.3,3360.2,0.00446136]
[1765361217887,5.724,3360.3,3360.2,0.00446136]
[1765361218280,5.724,3360.3,3359.0,0.92809453]
[1765361218281,5.724,3360.3,3359.0,0.15215607]
[1765361219391,5.724,3360.3,3359.4,1.7077]
[1765361219586,0.00446136,3360.8,3360.2,2.8945]
[1765361219893,0.00446136,3360.8,3360.2,5.6689]
[1765361220189,5.724,3360.3,3359.4,1.7077]
[1765361221184,5.724,3360.3,3359.3,0.00446136]
[1765361222279,0.00446136,3360.8,3360.2,5.6689]
[1765361222481,0.00446136,3360.8,3359.4,1.7077]
[1765361222482,0.00446136,3360.8,3360.7,5.6689]
[1765361222990,2.83586136,3360.8,3360.7,2.8945]
[1765361223187,2.83586136,3360.8,3360.0,1.7077]
[1765361224283,2.83586136,3360.8,3360.0,1.85651]
[1765361225589,2.8314,3360.1,3359.4,1.7077]
[1765361225791,2.8314,3360.1,3359.3,0.00446136]
[1765361227491,2.8314,3360.1,3359.4,1.7077]
[1765361228091,1.4985,3360.0,3359.3,0.00446136]
[1765361229588,2.4852,3359.4,3359.3,0.00446136]
[1765361229999,5.222,3359.4,3359.3,0.00446136]
[1765361230184,6.7087,3359.4,3359.3,0.00446136]
[1765361230387,6.7087,3359.4,3358.1,1.55657791]
[1765361230388,5.2655,3359.1,3358.2,2.48363846]
[1765361230590,5.2655,3359.1,3358.0,0.77593846]
[1765361230789,5.2655,3359.1,3357.6,2.48363846]
[1765361231184,0.14885,3359.0,3357.6,2.48363846]
[1765361231389,0.00446136,3358.6,3358.0,0.00446136]
[1765361231591,5.2655,3358.1,3358.0,0.00446136]
[1765361231797,5.26889927,3358.1,3358.0,0.00446136]
[1765361233189,5.26889927,3358.1,3357.0,1.6033]
[1765361233190,0.00339927,3358.1,3357.0,1.4828]
[1765361233391,0.00339927,3358.1,3358.0,5.0567]
[1765361233591,0.00446136,3358.6,3358.5,5.0567]
[1765361234398,0.6573,3360.0,3358.5,5.0567]
[1765361234900,41.45949831,3360.0,3358.5,5.06034634]
[1765361235392,0.00446136,3359.6,3358.9,0.00446136]
[1765361235794,5.2655,3359.0,3358.9,0.00446136]
[1765361236787,0.00446136,3359.6,3358.9,0.00446136]
[1765361237094,5.2655,3359.0,3358.9,0.00446136]
[1765361237600,0.15329136,3359.6,3358.9,0.00446136]
[1765361238198,2.6484,3359.0,3358.9,0.00446136]
[1765361238399,5.2655,3359.0,3358.9,0.00446136]
[1765361238798,2.6484,3359.0,3358.9,0.00446136]
[1765361239400,2.6484,3359.0,3358.9,2.60836136]
[1765361239600,0.15329136,3359.6,3358.9,2.60836136]
[1765361240101,2.6484,3359.0,3358.9,2.60836136]
[1765361241301,2.6484,3359.0,3358.9,0.00446136]
[1765361241500,0.00446136,3359.6,3358.9,2.60836136]
[1765361242403,0.00446136,3359.6,3359.1,0.77593846]
[1765361242605,0.00446136,3359.6,3359.5,5.0567]
[1765361242799,0.00446136,3359.6,3359.2,0.77593846]
[1765361242800,2.65286136,3359.6,3359.1,0.77593846]
[1765361243006,5.26996136,3359.6,3359.1,0.77593846]
[1765361243304,2.6484,3359.2,3359.1,0.77593846]
[1765361243503,5.2655,3359.2,3358.9,0.78039982]
[1765361243706,2.6484,3359.2,3359.1,2.6039]
[1765361243906,0.00446136,3359.6,3359.1,5.0567]
[1765361244202,0.00446136,3359.6,3359.5,5.0567]
[1765361245101,2.65286136,3359.6,3359.2,0.77593846]
[1765361245401,0.00446136,3359.6,3359.5,5.83263846]
[1765361245802,0.00446136,3359.6,3359.5,5.0567]
[1765361247400,0.00446136,3359.6,3359.5,6.09186124]
[1765361249002,0.00219831,3360.0,3359.9,5.0567]
[1765361249311,0.00219831,3360.0,3359.9,6.09417259]
[1765361250703,1.74263,3361.8,3360.2,5.0567]
[1765361250900,5.2655,3360.7,3360.5,0.7773766]
[1765361251106,2.6484,3360.3,3360.2,3.3812766]
[1765361251307,2.6484,3360.3,3360.2,2.6039]
[1765361251809,0.00223409,3360.3,3360.1,0.7773766]
[1765361253010,0.00223409,3360.3,3360.2,0.7773766]
[1765361253210,0.00223409,3360.3,3360.1,0.7773766]
[1765361254506,0.00223409,3360.3,3360.0,0.7773766]
[1765361256010,0.00223409,3360.3,3360.1,0.7773766]
[1765361256317,0.00446136,3360.6,3360.1,0.7773766]
[1765361256503,0.00446136,3360.6,3360.3,0.7773766]
[1765361257316,0.0067017,3360.6,3360.3,0.7773766]
[1765361259017,0.0067017,3360.6,3360.1,1.03650214]
[1765361259018,0.14872,3362.0,3360.4,1.03650214]
[1765361259216,0.14872,3362.0,3360.6,0.77660277]
[1765361260015,0.00446136,3361.6,3360.6,0.77660277]
[1765361261112,1.36367374,3361.5,3360.5,0.77660277]
[1765361261312,1.36367374,3361.5,3360.4,0.77660277]
[1765361262216,0.00446136,3361.6,3360.5,0.77660277]
[1765361262808,0.00446136,3361.6,3360.6,0.77660277]
[1765361263209,0.00446136,3361.6,3361.2,0.14875]
[1765361263406,0.00446136,3361.6,3361.2,0.92786239]
[1765361263610,0.00446136,3361.6,3361.2,0.00250962]
[1765361263814,1.36367374,3361.4,3361.2,0.00250962]
[1765361266814,0.14876,3361.2,3359.9,0.78106413]
[1765361267020,1.36367374,3360.3,3359.9,0.00446136]
[1765361267718,1.36367374,3360.3,3359.9,0.00800479]
[1765361268312,1.36367374,3361.2,3359.9,0.00800479]
[1765361268717,0.00446136,3361.6,3359.9,0.78460756]
[1765361268919,0.00446136,3361.6,3360.2,0.77660277]
[1765361269120,0.00446136,3361.6,3360.4,0.77660277]
[1765361269321,0.00446136,3361.6,3360.5,0.77660277]
[1765361269625,1.36367374,3361.2,3360.5,0.77660277]
[1765361269926,1.36367374,3361.2,3360.3,0.77660277]
[1765361270618,1.36367374,3361.2,3360.2,0.77660277]
[1765361270825,1.36367374,3360.7,3360.1,0.77660277]
[1765361271120,0.14876,3361.1,3360.1,0.77660277]
[1765361271725,0.14876,3361.1,3360.0,0.77660277]
[1765361271927,1.36367374,3360.7,3360.0,0.77660277]
[1765361272127,1.36367374,3360.7,3360.0,0.77847674]
[1765361272425,1.36367374,3360.7,3359.9,0.00800479]